bitfinex/quotes_SOLUSD_20220212
["timestamp","ask_amount","ask_price","bid_price","bid_amount"]
[1644676084104,5.256,95.169,95.08,30.9017]
[1644676084304,0.25,95.168,95.08,30.9017]
[1644676084504,5.256,95.167,95.08,30.9017]
[1644676085006,5.256,95.174,95.08,30.9017]
[1644676085207,5.256,95.174,95.081,5.256]
[1644676085507,5.256,95.174,95.1,15.7691]
[1644676086510,5.256,95.174,95.082,45.7573]
[1644676086809,7.81960509,95.173,95.082,45.7573]
[1644676087013,13.13177776,95.172,95.082,45.7573]
[1644676087209,2.93007563,95.167,95.082,45.7573]
[1644676087406,5.19570213,95.171,95.082,45.7573]
[1644676087407,15.7746,95.16,95.082,45.7573]
[1644676087808,5.19570213,95.159,95.082,45.7573]
[1644676088011,5.256,95.158,95.082,45.7573]
[1644676088216,0.25,95.157,95.082,45.7573]
[1644676088413,10.20170213,95.156,95.082,45.7573]
[1644676088613,4.94570213,95.155,95.082,45.7573]
[1644676088815,5.256,95.154,95.082,45.7573]
[1644676089219,5.19807202,95.153,95.082,45.7573]
[1644676089420,15.7762,95.15,95.082,45.7573]
[1644676089622,15.7762,95.15,95.06,15.7747]
[1644676089920,5.19807202,95.149,95.06,15.7747]
[1644676090122,4.94807202,95.148,95.06,15.7747]
[1644676090322,5.507,95.147,95.06,15.7747]
[1644676090622,48.01727916,95.146,95.06,15.7747]
[1644676090826,0.25,95.145,95.06,15.7747]
[1644676091025,15.7778,95.14,95.061,5.257]
[1644676091223,0.25,95.139,95.044,5.257]
[1644676091924,4.94832123,95.138,95.044,5.257]
[1644676092123,48.01727916,95.146,95.045,15.71035273]
[1644676092325,48.01727916,95.146,95.05,15.13]
[1644676092725,5.257,95.145,95.07,15.774]
[1644676093027,48.01727916,95.146,95.07,15.774]
[1644676093224,5.257,95.145,95.07,15.774]
[1644676093427,48.01727916,95.146,95.071,5.257]
[1644676093723,5.257,95.145,95.071,5.257]
[1644676096250,5.257,95.145,95.07,15.774]
[1644676096448,48.01727916,95.146,95.07,15.774]
[1644676098753,48.01727916,95.146,95.071,5.257]
[1644676099355,2.93007563,95.167,95.08,15.7726]
[1644676099559,5.257,95.159,95.08,15.7726]
[1644676099752,4.95326591,95.176,95.08,15.7726]
[1644676099753,0.25,95.158,95.081,5.256]
[1644676099953,5.506,95.158,95.08,15.7726]
[1644676100258,46.48060966,95.157,95.08,15.7726]
[1644676100459,5.256,95.156,95.08,15.7726]
[1644676100653,5.506,95.156,95.08,15.7726]
[1644676103066,4.95556188,95.155,95.061,23.7029]
[1644676103261,5.507,95.154,95.033,5.257]
[1644676103463,2.93007563,95.151,95.041,5.257]
[1644676103666,2.93007563,95.149,95.041,5.257]
[1644676103861,8.13563751,95.15,95.041,5.257]
[1644676104063,2.62390296,95.148,95.041,5.257]
[1644676104261,10.46256188,95.147,95.041,5.257]
[1644676104461,4.95556188,95.146,95.041,5.257]
[1644676104662,5.257,95.145,95.041,5.257]
[1644676104864,15.7792,95.14,95.041,5.257]
[1644676105262,5.20556188,95.139,95.05,15.13]
[1644676105562,0.25,95.139,95.05,15.13]
[1644676105763,5.257,95.138,95.051,29.7905]
[1644676105963,5.257,95.138,95.06,15.7758]
[1644676106165,5.257,95.138,95.061,5.257]
[1644676106765,0.25,95.137,95.061,5.257]
[1644676106964,0.25,95.137,95.06,15.7758]
[1644676107162,5.257,95.136,95.06,15.7758]
[1644676107567,0.25,95.135,95.061,5.257]
[1644676108364,8.68,95.135,95.061,5.257]
[1644676108565,5.257,95.134,95.051,24.5335]
[1644676108769,0.25,95.133,95.051,24.5335]
[1644676108973,15.778,95.14,95.051,24.5335]
[1644676109168,0.25,95.133,95.052,18.079695]
[1644676110371,0.25,95.139,95.052,18.079695]
[1644676111769,5.507,95.139,95.052,18.079695]
[1644676114088,5.257,95.139,95.052,18.079695]
[1644676114488,21.2388,95.139,95.052,18.079695]
[1644676115689,0.25,95.138,95.052,17.579695]
[1644676115894,5.257,95.137,95.06,15.7763]
[1644676116090,0.25,95.138,95.06,15.7763]
[1644676117392,0.25,95.153,95.06,15.7763]
[1644676118195,15.7764,95.15,95.06,15.7763]
[1644676118394,5.257,95.149,95.06,15.7763]
[1644676118592,5.507,95.149,95.06,15.7763]
[1644676118996,0.25,95.149,95.06,15.7763]
[1644676119794,15.778,95.14,95.06,15.7763]
[1644676119994,5.257,95.139,95.06,15.7763]
[1644676120212,5.507,95.139,95.06,15.7763]
[1644676121515,5.507,95.139,95.051,24.5335]
[1644676121911,5.507,95.139,95.051,40.1304]
[1644676123712,5.507,95.139,95.051,24.5335]
[1644676123916,15.7797,95.13,95.051,24.5335]
[1644676124217,0.25,95.129,95.051,24.5335]
[1644676124413,46.09995099,95.128,95.051,24.5335]
[1644676124815,0.25,95.127,95.051,24.5335]
[1644676125415,46.09995099,95.128,95.051,24.5335]
[1644676125615,5.258,95.127,95.051,24.5335]
[1644676125815,46.09995099,95.128,95.051,24.5335]
[1644676126718,0.25,95.127,95.051,24.5335]
[1644676126916,5.258,95.126,95.051,24.5335]
[1644676127117,15.7813,95.12,95.051,24.5335]
[1644676127316,5.508,95.119,95.051,24.5335]
[1644676129818,0.25,95.119,95.051,24.5335]
[1644676130817,5.508,95.119,95.051,24.5335]
[1644676133118,5.258,95.119,95.051,24.5335]
[1644676134623,0.25,95.118,95.051,24.5335]
[1644676134827,15.7831,95.11,95.02,40.58142797]
[1644676135025,15.7831,95.11,95.013,22.8012]
[1644676135233,5.51,95.109,95.013,22.8012]
[1644676135628,0.25,95.109,95.013,22.8012]
[1644676135829,5.259,95.108,95.013,22.8012]
[1644676136230,0.25,95.107,95.013,22.8012]
[1644676136532,5.259,95.106,95.013,22.8012]
[1644676136834,34.60337857,95.089,95.013,22.8012]
[1644676137334,0.25,95.088,95.013,22.8012]
[1644676139248,5.26,95.087,95.013,22.8012]
[1644676140249,0.25,95.088,95.013,22.8012]
[1644676143554,5.26,95.087,95.013,22.8012]
[1644676143754,0.25,95.086,95.013,22.8012]
[1644676143958,5.26,95.085,95.013,22.8012]
[1644676144154,0.25,95.086,95.013,22.8012]
[1644676144355,0.25,95.084,95.013,22.8012]
[1644676144554,0.25,95.086,95.013,22.8012]
[1644676145557,0.25,95.088,95.013,22.8012]
[1644676145756,5.51,95.088,95.013,22.8012]
[1644676147356,0.25,95.088,95.013,22.8012]
[1644676148558,0.25,95.088,95.014,5.26]
[1644676148959,15.7879,95.08,95.014,5.26]
[1644676149159,5.26,95.079,95.007,22.8349]
[1644676149358,5.51,95.079,95.007,22.8349]
[1644676149959,5.51,95.079,95.0,65.13]
[1644676151161,5.51,95.079,95.001,23.5292]
[1644676151561,15.7898,95.07,95.001,23.5292]
[1644676151760,0.25,95.069,95.0,50.0]
[1644676151964,8.13490296,95.069,95.0,50.0]
[1644676152160,1.47697668,95.064,95.0,50.0]
[1644676152463,45.0,95.062,94.952,1.48673457]
[1644676152662,1.47697668,95.056,94.945,1.48673457]
[1644676152864,1.47697668,95.056,94.941,74.07640041]
[1644676152865,1.47697668,95.051,94.954,2.62390296]
[1644676153262,21.3085,95.05,94.941,49.4457]
[1644676153562,1.47697668,95.045,94.941,49.4457]
[1644676153764,0.25,95.044,94.941,49.4457]
[1644676153961,5.263,95.043,94.942,17.93769514]
[1644676154161,2.87390296,95.044,94.942,20.5615981]
[1644676154162,4.35087964,95.044,94.942,20.5615981]
[1644676154361,15.7954,95.04,94.943,2.62390296]
[1644676154861,5.513,95.039,94.944,17.93769514]
[1644676155061,23.7453,95.038,94.944,17.93769514]
[1644676155364,0.25,95.037,94.945,2.62390296]
[1644676156664,15.7962,95.03,94.95,15.7947]
[1644676156865,0.25,95.037,94.95,15.7947]
[1644676157064,0.25,95.037,94.951,2.62390296]
[1644676157265,5.263,95.036,94.951,2.62390296]
[1644676157465,5.263,95.036,94.952,24.8284]
[1644676157666,0.25,95.035,94.952,24.8284]
[1644676157873,15.7963,95.03,94.952,24.8284]
[1644676158070,5.263,95.029,94.952,24.8284]
[1644676158273,5.513,95.029,94.952,24.8284]
[1644676158872,35.42008058,95.028,94.952,24.8284]
[1644676159071,15.7977,95.02,94.952,24.8284]
[1644676159274,5.513,95.019,94.952,24.8284]
[1644676160482,5.513,95.019,94.941,24.6981]
[1644676160483,15.7999,95.01,94.941,24.6981]
[1644676160678,15.7999,95.01,94.905,23.3681]
[1644676160875,28.3271,95.009,94.905,23.3681]
[1644676161077,23.0621,95.009,94.905,23.3681]
[1644676161275,38.13116196,95.008,94.906,17.92532844]
[1644676161678,0.25,95.007,94.906,17.92532844]
[1644676161880,15.8021,95.0,94.91,15.3003]
[1644676162277,0.25,94.999,94.91,15.3003]
[1644676163278,0.25,94.999,94.911,51.42306521]
[1644676163680,0.25,94.999,94.912,2.62390296]
[1644676166081,5.265,94.998,94.912,2.62390296]
[1644676166282,0.25,94.997,94.912,2.62390296]
[1644676166481,5.265,94.996,94.912,2.62390296]
[1644676166682,0.25,94.995,94.912,2.62390296]
[1644676166882,37.56835842,94.993,94.912,2.62390296]
[1644676169083,37.56835842,94.993,94.92,30.9299]
[1644676169485,37.56835842,94.993,94.921,25.55600296]
[1644676169887,37.56835842,94.993,94.922,2.62390296]
[1644676170289,0.25,94.992,94.93,15.7989]
[1644676170489,0.25,94.992,94.921,22.9321]
[1644676170691,5.265,94.991,94.921,22.9321]
[1644676171090,0.25,94.99,94.921,22.9321]
[1644676171892,16.0528,94.99,94.921,22.9321]
[1644676174294,23.2828,94.99,94.921,22.9321]
[1644676174901,5.265,94.989,94.921,22.9321]
[1644676175400,15.8047,94.98,94.921,22.9321]
[1644676175596,15.8047,94.98,94.9,15.13]
[1644676175797,5.516,94.979,94.902,24.0593]
[1644676176199,15.8068,94.97,94.882,2.62390296]
[1644676176403,15.8068,94.97,94.87,30.9383]
[1644676176606,5.517,94.969,94.87,30.9383]
[1644676176808,0.25,94.969,94.87,30.9383]
[1644676177202,0.25,94.969,94.871,43.37692778]
[1644676177403,0.25,94.969,94.871,46.00083074]
[1644676177604,0.25,94.969,94.872,2.62390296]
[1644676177806,15.8084,94.96,94.87,30.9383]
[1644676178105,15.8084,94.96,94.868,23.3943]
[1644676178305,30.1875,94.959,94.868,23.3943]
[1644676178507,32.81140296,94.959,94.868,23.3943]
[1644676178707,47.77095498,94.958,94.868,23.3943]
[1644676178907,5.267,94.957,94.868,23.3943]
[1644676179108,44.039888,94.939,94.868,23.3943]
[1644676179307,44.039888,94.939,94.871,13.39918121]
[1644676179707,44.039888,94.939,94.87,15.8097]
[1644676180521,0.25,94.938,94.87,15.8097]
[1644676181721,44.039888,94.939,94.87,15.8097]
[1644676182218,44.039888,94.939,94.871,2.62390296]
[1644676182418,0.25,94.938,94.87,15.8097]
[1644676183721,5.268,94.937,94.87,15.8097]
[1644676183923,5.268,94.937,94.868,23.3943]
[1644676184220,0.25,94.936,94.868,23.3943]
[1644676185220,0.25,94.938,94.868,23.3943]
[1644676185422,5.268,94.935,94.868,23.3943]
[1644676185621,0.25,94.938,94.87,15.8098]
[1644676185823,44.039888,94.939,94.87,15.8098]
[1644676186041,0.25,94.938,94.87,15.8098]
[1644676186221,0.25,94.938,94.868,23.3943]
[1644676186420,5.268,94.937,94.868,23.3943]
[1644676186820,0.25,94.936,94.868,23.3943]
[1644676187223,5.268,94.935,94.861,24.0141]
[1644676187625,0.25,94.934,94.861,24.0141]
[1644676188029,5.268,94.933,94.861,24.0141]
[1644676188229,44.039888,94.939,94.861,24.0141]
[1644676188423,5.268,94.938,94.861,24.0141]
[1644676188626,44.039888,94.939,94.862,22.4253]
[1644676189424,44.039888,94.939,94.871,42.76802593]
[1644676189625,44.039888,94.939,94.872,5.268]
[1644676190427,44.039888,94.939,94.873,23.3106]
[1644676190627,44.039888,94.939,94.874,5.268]
[1644676190830,44.039888,94.939,94.89,15.806]
[1644676191028,44.039888,94.939,94.891,5.267]
[1644676192427,44.039888,94.939,94.89,15.806]
[1644676195730,44.039888,94.939,94.891,9.91681245]
[1644676195931,44.039888,94.939,94.9,15.8042]
[1644676197933,23.0042,94.978,94.9,15.8042]
[1644676198135,23.0042,94.978,94.901,2.62390296]
[1644676198333,0.25,94.977,94.9,15.8042]
[1644676198634,5.266,94.977,94.9,15.8042]
[1644676199734,48.01682987,94.976,94.9,15.8042]
[1644676200534,48.01682987,94.976,94.901,2.62390296]
[1644676200737,5.266,94.975,94.901,2.62390296]
[1644676200936,5.266,94.975,94.9,15.13]
[1644676201343,0.25,94.974,94.901,22.6908]
[1644676201537,5.266,94.973,94.901,22.6908]
[1644676201739,0.25,94.972,94.901,22.6908]
[1644676201939,5.266,94.971,94.901,22.6908]
[1644676202238,0.25,94.97,94.901,22.6908]
[1644676202441,5.266,94.969,94.901,22.6908]
[1644676202838,0.25,94.968,94.901,22.6908]
[1644676203238,5.266,94.967,94.901,22.6908]
[1644676203640,0.25,94.966,94.901,22.6908]
[1644676203841,5.266,94.965,94.91,15.8027]
[1644676204039,22.7781,94.975,94.91,15.8027]
[1644676204241,0.25,94.974,94.91,15.8027]
[1644676205542,5.266,94.973,94.91,15.8027]
[1644676205742,0.25,94.972,94.91,15.8027]
[1644676205942,5.266,94.971,94.91,15.8027]
[1644676206142,5.266,94.972,94.911,2.62390296]
[1644676206346,5.266,94.974,94.92,15.8008]
[1644676206546,48.01682987,94.976,94.921,44.83509616]
[1644676207244,48.01682987,94.976,94.92,15.8008]
[1644676208245,48.01682987,94.976,94.921,39.17275471]
[1644676208646,1.47697668,95.0,94.93,15.7997]
[1644676208845,1.47697668,95.0,94.931,24.2887]
[1644676208846,0.25,94.999,94.931,24.2887]
[1644676209846,0.25,94.999,94.94,15.7981]
[1644676210047,0.25,95.002,94.94,15.7981]
[1644676211251,5.514,95.002,94.94,15.7981]
[1644676211651,5.264,95.002,94.94,15.7981]
[1644676212453,44.20163395,95.003,94.94,15.7981]
[1644676213452,44.20163395,95.003,94.94,18.42200296]
[1644676213853,44.20163395,95.003,94.94,15.7981]
[1644676214857,44.20163395,95.003,94.941,24.077]
[1644676215260,44.20163395,95.003,94.95,15.7964]
[1644676215456,44.20163395,95.003,94.951,9.98698564]
[1644676215857,44.20163395,95.003,94.952,2.62390296]
[1644676216259,44.20163395,95.003,94.953,5.264]
[1644676216662,1.47697668,95.025,94.942,5.264]
[1644676216959,1.47697668,95.026,94.96,15.7948]
[1644676217159,1.47697668,95.038,94.961,30.2542]
[1644676217365,348.25165167,95.041,94.97,15.13]
[1644676217561,1.47697668,95.041,94.971,5.261]
[1644676217759,1.47697668,95.041,94.99,15.7887]
[1644676217960,43.82033526,95.042,94.991,5.33680499]
[1644676218158,43.82033526,95.042,94.991,7.96070795]
[1644676218357,1.47697668,95.055,94.991,7.96070795]
[1644676218558,1.47697668,95.057,94.992,47.0961]
[1644676218957,1.47697668,95.057,95.0,15.787]
[1644676219158,1.47697668,95.062,95.0,15.787]
[1644676219362,4.39511344,95.11,95.0,15.787]
[1644676219363,1.47697668,95.07,95.001,2.62390296]
[1644676219760,1.47697668,95.08,95.001,2.62390296]
[1644676219961,1.47697668,95.08,95.02,15.781]
[1644676220160,1.47697668,95.079,95.02,15.781]
[1644676220360,5.26,95.078,95.02,15.781]
[1644676220562,35.49494258,95.083,95.021,50.43205722]
[1644676220860,35.49494258,95.083,95.021,47.80815426]
[1644676221063,35.49494258,95.083,95.022,2.62390296]
[1644676221261,1.47697668,95.096,95.022,2.62390296]
[1644676221491,1.47697668,95.096,95.023,28.1661]
[1644676221690,1.47697668,95.096,95.03,15.7796]
[1644676221885,1.47697668,95.104,95.03,15.7796]
[1644676222083,1.47697668,95.105,95.031,32.11400296]
[1644676222280,36.7002718,95.112,95.032,31.0]
[1644676222481,36.7002718,95.112,95.033,5.259]
[1644676222685,36.7002718,95.112,95.033,7.88290296]
[1644676222881,8.13290296,95.111,95.033,7.88290296]
[1644676223082,8.13290296,95.111,95.033,5.259]
[1644676223779,5.509,95.111,95.033,5.259]
[1644676224181,18.40750296,95.11,95.031,24.2321]
[1644676224383,18.40750296,95.11,95.03,15.7821]
[1644676224581,0.25,95.109,95.03,15.7821]
[1644676224780,0.25,95.109,95.0,52.6119]
[1644676224781,5.259,95.108,95.0,15.13]
[1644676224980,15.13,95.1,94.983,43.96051924]
[1644676225181,15.7897,95.07,94.99,15.7892]
[1644676225381,5.261,95.069,94.99,15.7892]
[1644676225581,44.20829913,95.068,94.99,15.7892]
[1644676225783,5.511,95.067,94.99,15.7892]
[1644676228586,2.62390296,95.066,94.99,15.7892]
[1644676228783,5.511,95.065,94.99,15.7892]
[1644676229184,0.25,95.065,94.99,15.7892]
[1644676229987,0.25,95.067,94.99,15.7892]
[1644676230586,15.7916,95.06,94.97,15.7916]
[1644676230786,0.25,95.059,94.97,15.7916]
[1644676230987,5.261,95.058,94.971,42.12197205]
[1644676231185,0.25,95.057,94.971,42.12197205]
[1644676231390,5.261,95.056,94.971,42.12197205]
[1644676231786,0.25,95.055,94.971,42.12197205]
[1644676231989,35.78210888,95.053,94.971,42.12197205]
[1644676232186,5.511,95.052,94.971,42.12197205]
[1644676232787,15.7932,95.05,94.971,42.12197205]
[1644676232987,5.261,95.049,94.971,42.12197205]
[1644676233187,5.511,95.049,94.971,42.12197205]
[1644676233990,5.511,95.049,94.98,15.7912]
[1644676236895,5.261,95.049,94.98,15.7912]
[1644676237098,5.261,95.079,94.98,15.7912]
[1644676237295,29.8322,95.097,94.99,15.13]
[1644676237495,5.261,95.086,95.01,15.7852]
[1644676237696,5.26,95.096,95.01,15.7852]
[1644676237994,35.43213352,95.095,95.012,12.64317811]
[1644676238195,5.26,95.094,95.012,12.64317811]
[1644676238393,5.26,95.094,95.011,27.29320296]
[1644676238598,5.26,95.094,95.02,15.7833]
[1644676238994,0.25,95.093,95.02,15.7833]
[1644676239195,5.26,95.092,95.02,15.7833]
[1644676239795,5.26,95.094,95.02,15.7833]
[1644676242000,0.25,95.093,95.02,15.7833]
[1644676242899,15.7862,95.09,95.011,24.6693]
[1644676244600,5.51,95.089,95.011,24.6693]
[1644676245200,5.04416689,95.088,95.011,24.6693]
[1644676245600,0.25,95.087,95.011,24.6693]
[1644676245801,5.26,95.086,95.011,24.6693]
[1644676246003,0.25,95.087,95.011,24.6693]
[1644676246400,5.04662793,95.086,95.011,24.6693]
[1644676246606,5.26,95.085,95.011,24.6693]
[1644676246800,5.51,95.085,95.011,24.6693]
[1644676247000,0.25,95.085,95.011,24.6693]
[1644676247601,5.26,95.084,95.02,15.7842]
[1644676247901,38.36405584,95.095,95.02,15.7842]
[1644676248101,5.04794682,95.094,95.02,15.7842]
[1644676248303,35.43213352,95.095,95.02,15.7842]
[1644676251208,5.259,95.094,95.02,15.7842]
[1644676251613,5.259,95.094,95.04,15.7792]
[1644676251811,35.43213352,95.095,95.041,37.19353675]
[1644676252210,35.43213352,95.095,95.04,9.23]
[1644676252411,35.43213352,95.095,95.041,5.259]
[1644676252615,35.43213352,95.095,95.03,15.13]
[1644676253713,35.43213352,95.095,95.05,15.7786]
[1644676255934,35.43213352,95.095,95.031,5.259]
[1644676256137,5.509,95.094,95.022,23.6516]
[1644676256635,5.509,95.094,95.01,5.259]
[1644676256833,5.509,95.094,95.001,24.8413]
[1644676256834,26.51970296,95.094,95.009,5.26]
[1644676257034,5.26,95.093,95.001,24.8413]
[1644676257233,0.25,95.092,95.001,24.8413]
[1644676257436,5.26,95.091,95.001,24.8413]
[1644676257835,16.0363,95.09,95.002,23.9775]
[1644676258035,16.0363,95.09,95.002,29.2375]
[1644676258238,5.26,95.089,95.002,23.9775]
[1644676258736,0.25,95.088,95.002,23.9775]
[1644676258936,5.26,95.087,95.002,23.9775]
[1644676259338,0.25,95.086,95.002,23.9775]
[1644676259838,5.26,95.085,95.002,23.9775]
[1644676260037,0.25,95.086,95.002,23.9775]
[1644676260246,15.788,95.08,95.002,23.9775]
[1644676260538,15.788,95.08,95.001,24.8413]
[1644676260539,15.788,95.08,94.98,67.7509]
[1644676260740,10.55251149,95.079,94.981,24.8414]
[1644676261140,47.80571764,95.078,94.982,37.70264777]
[1644676261441,10.55351149,95.077,94.982,37.70264777]
[1644676261841,5.511,95.077,94.99,15.7887]
[1644676263044,0.25,95.077,94.99,30.9187]
[1644676263241,42.76320615,95.078,94.99,30.9187]
[1644676264443,42.76320615,95.078,95.01,15.785]
[1644676264643,42.76320615,95.078,95.012,17.06250239]
[1644676264844,42.76320615,95.078,95.013,5.26]
[1644676265043,5.26,95.077,95.012,17.06250239]
[1644676265450,0.25,95.076,95.01,15.785]
[1644676265644,0.25,95.076,95.011,5.26]
[1644676265845,5.26,95.075,95.01,15.785]
[1644676266046,5.51,95.077,95.01,15.785]
[1644676266651,5.51,95.077,94.995,46.84616832]
[1644676266849,5.51,95.077,94.991,24.4825]
[1644676267251,5.04835929,95.076,94.991,24.4825]
[1644676267651,0.25,95.075,94.991,24.4825]
[1644676267849,10.30935929,95.074,94.991,24.4825]
[1644676268052,5.04835929,95.073,94.992,38.78802542]
[1644676268251,5.261,95.072,94.992,38.78802542]
[1644676268451,5.04835929,95.071,94.992,38.78802542]
[1644676268651,5.261,95.07,94.992,38.78802542]
[1644676268853,0.25,95.069,94.992,38.78802542]
[1644676269053,0.25,95.069,94.991,24.4825]
[1644676269952,5.04768558,95.068,94.991,24.4825]
[1644676270155,5.29768558,95.069,94.991,24.4825]
[1644676270355,0.25,95.067,94.991,24.4825]
[1644676270754,5.04768558,95.066,94.991,24.4825]
[1644676271255,0.25,95.065,94.991,24.4825]
[1644676271453,5.511,95.065,94.991,24.4825]
[1644676271657,15.7912,95.06,94.98,15.7904]
[1644676271859,15.7912,95.06,94.961,24.1172]
[1644676272055,44.16949772,95.058,94.961,24.1172]
[1644676272253,5.29468515,95.057,94.961,24.1172]
[1644676272453,10.30568515,95.056,94.961,24.1172]
[1644676272654,5.04468515,95.055,94.94,67.7726]
[1644676272858,15.7948,95.04,94.932,2.62390296]
[1644676273062,2.93192232,95.034,94.906,2.62390296]
[1644676273254,29.1671,95.039,94.91,15.13]
[1644676273255,2.93192232,95.028,94.91,15.13]
[1644676273656,47.65335061,95.026,94.911,38.15841118]
[1644676274056,48.8954,95.025,94.912,51.81930296]
[1644676274358,48.8954,95.025,94.92,15.7995]
[1644676274557,5.264,95.024,94.92,30.9295]
[1644676274757,0.25,95.023,94.921,2.62390296]
[1644676274958,5.264,95.022,94.921,2.62390296]
[1644676275358,5.264,95.024,94.921,2.62390296]
[1644676275561,48.6454,95.025,94.922,17.98778807]
[1644676275765,5.264,95.024,94.923,23.8135]
[1644676275961,15.7977,95.02,94.923,2.62390296]
[1644676276159,5.264,95.019,94.923,2.62390296]
[1644676276359,5.514,95.019,94.924,23.8135]
[1644676276560,0.25,95.019,94.924,23.8135]
[1644676276759,5.264,95.018,94.924,23.8135]
[1644676276965,5.514,95.022,94.92,15.13]
[1644676277160,5.514,95.017,94.92,15.13]
[1644676277360,5.264,95.021,94.92,15.13]
[1644676277559,0.25,95.016,94.921,22.8127]
[1644676277762,15.8008,95.01,94.921,22.8127]
[1644676278263,41.65102516,95.009,94.921,22.8127]
[1644676278759,52.71102516,95.009,94.93,15.7989]
[1644676278961,5.264,95.008,94.93,15.7989]
[1644676279366,0.25,95.007,94.93,15.7989]
[1644676279560,5.264,95.006,94.93,15.7989]
[1644676279761,0.25,95.005,94.93,15.7989]
[1644676279962,5.264,95.004,94.93,14.2989]
[1644676280165,5.264,95.004,94.921,22.8127]
[1644676280462,15.8028,95.0,94.912,24.6308]
[1644676280661,5.265,94.999,94.891,23.2727]
[1644676280868,0.25,94.999,94.891,23.2727]
[1644676281163,5.266,94.998,94.9,15.8045]
[1644676281364,0.25,95.001,94.9,15.8045]
[1644676281566,0.25,94.997,94.9,15.8045]
[1644676282664,15.8049,94.99,94.891,23.2727]
[1644676282864,61.42709813,94.989,94.891,23.2727]
[1644676283063,5.266,94.988,94.891,23.2727]
[1644676283267,0.25,94.987,94.891,23.2727]
[1644676283467,5.266,94.986,94.891,23.2727]
[1644676283964,15.8066,94.98,94.9,15.8048]
[1644676284367,0.25,94.979,94.9,15.8048]
[1644676284764,5.266,94.978,94.9,15.8048]
[1644676284965,0.25,94.979,94.9,15.8048]
[1644676286266,0.25,94.987,94.9,15.8048]
[1644676286466,5.266,94.986,94.9,15.8048]
[1644676286867,0.25,94.985,94.891,23.2727]
[1644676287070,5.266,94.984,94.891,23.2727]
[1644676287268,0.25,94.983,94.891,23.2727]
[1644676287467,5.266,94.982,94.891,23.2727]
[1644676287867,15.807,94.98,94.891,23.2727]
[1644676288069,5.266,94.979,94.87,15.13]
[1644676288269,5.266,94.979,94.83,189.07]
[1644676288270,8.13990296,94.979,94.84,52.7017]
[1644676288469,8.13990296,94.979,94.84,67.8317]
[1644676288470,46.5049,94.978,94.84,67.8317]
[1644676288672,54.39680296,94.978,94.84,67.8317]
[1644676288870,2.87390296,94.977,94.84,67.8317]
[1644676289071,5.268,94.976,94.84,67.8317]
[1644676289271,0.25,94.975,94.84,67.8317]
[1644676289471,15.13,94.97,94.84,67.8317]
[1644676289675,492.38848027,94.968,94.841,24.8893]
[1644676289872,15.8116,94.95,94.85,15.8129]
[1644676290072,24.9495,94.949,94.851,22.5387]
[1644676290278,30.4675,94.949,94.851,22.5387]
[1644676290671,41.41098189,94.948,94.841,24.8893]
[1644676290873,5.269,94.947,94.83,15.13]
[1644676291074,5.519,94.947,94.83,15.13]
[1644676291276,8.14290296,94.947,94.83,15.13]
[1644676291875,15.8133,94.94,94.84,15.8138]
[1644676292077,5.269,94.939,94.84,15.8138]
[1644676292278,5.269,94.946,94.841,24.1982]